Cogmind - Beta 16 @@@ ROGUE MODE // 2025.11.02 @ 09:12:09 Player: Mozco Result: Destroyed by L-61 Swordsman with Power Sword Performance ------------- Evolutions (7) 3500 Regions Visited (22) 4400 Robots Destroyed (400) 2000 Value Destroyed (18654) 18654 Prototype IDs (22) 440 Alien Tech Used (0) 0 Bonus (18581) 18581 TOTAL SCORE: 47575 Bonus ------- Triggered High Security 1000 High Alert Combat Kills 9083 Follower Combat Kills 3098 Entered Garrisons 1400 Used RIF Installer 3500 Scanned by Researcher 500 Cogmind --------- Core Integrity 0/1300 Matter 129/300 Energy 100/100 System Corruption 81% Temperature Cool (0) Movement Core (700) Ox13 Location -3/Research Parts ------- > --- POWER (3) -------- (None) > --- PROPULSION (4) --- (None) > --- UTILITY (10) ----- High-capacity Storage Unit Advanced Salvage Targeting Computer > --- WEAPON (4) ------- (None) > --- INVENTORY (20) --- Advanced Energy Well (301) Improved Transmission Jammer Segregator Peak State ------------ > --- POWER ------------ Cooled Fission Core Particle Reactor Particle Reactor > --- PROPULSION ------- Armored Huge Wheel Armored Huge Wheel > --- UTILITY ---------- Advanced Power Amplifier High-capacity Storage Unit Advanced Energy Well Improved Medium Armor Plating Centrium Heavy Armor Plating Active Cooling Armor Advanced Force Field > --- WEAPON ----------- Heavy Wave Gun Heavy Disruptor Cannon Matter Neutralizer > --- INVENTORY -------- F-cell Engine Particle Reactor Particle Reactor Advanced Coolant Injector Advanced Particle Charger Improved Medium Armor Plating EM Shield Advanced Force Field Advanced Point Defense System Relay Coupler [Brawler] Compact HERF Cannon Heavy Phase Cannon Matter Neutralizer Guided EMP Blaster Gamma Bomb Array Advanced Remote Datajack [Rating: 152] Favorites ----------- Power Light Antimatter Reactor Engine F-cell Engine Power Core Cooled Fission Core Reactor Light Antimatter Reactor Propulsion Armored Huge Wheel Wheel Armored Huge Wheel Utility High-capacity Storage Unit Device Improved Heat Sink Storage High-capacity Storage Unit Processor Signal Interpreter Hackware Relay Coupler [Sentry] Protection Improved Medium Armor Plating Weapon Advanced Beam Cannon Energy Gun Improved EM Shotgun Energy Cannon Advanced Beam Cannon Ballistic Gun Assault Rifle Launcher Advanced EMP Blaster Special Weapon Remote Datajack Piercing Weapon Lance Special Melee Weapon Improved Datajack Build | -11 -10 -10 -9 -9 -9 -8 -8 -8 -8 -7 -7 -7 -7 -7 -7 -6 -6 -6 -5 -5 -4 -3 ------- Run | Yrd Mat Min Mat Sto Gar Mat Gar Mat Gar Fac Was Fac Gar Fac Gar Fac Gar Fac Fac Gar Fac Res Slots Evolved 14 | . . . 2 . . 2 . . . 2 . . . . . 2 . . 2 . 2 2 Power 2 | . . . . . . . . . . . . . . . . 1 . . 1 . . . Propulsion 2 | . . . . . . . . . . 1 . . . . . 1 . . . . . . Utility 8 | . . . 2 . . 1 . . . 1 . . . . . . . . 1 . 2 1 Weapon 2 | . . . . . . 1 . . . . . . . . . . . . . . . 1 Parts Attached 245 | 6 3 4 5 21 10 12 9 4 9 . 1 17 2 7 18 11 5 22 19 13 6 41 Power 34 | 1 . 1 1 4 1 1 1 . 2 . . 3 . . 2 1 . 3 4 2 . 7 Engine 15 | 1 . 1 1 4 1 1 . . . . . 1 . . . . . 2 2 . . 1 Core 10 | . . . . . . . 1 . 2 . . 2 . . 1 . . . 2 2 . . Reactor 9 | . . . . . . . . . . . . . . . 1 1 . 1 . . . 6 Propulsion 37 | 2 . 2 . 4 1 4 2 . . . . 2 . 2 1 1 . 3 6 . 1 6 Treads . | . . . . . . . . . . . . . . . . . . . . . . . Leg . | . . . . . . . . . . . . . . . . . . . . . . . Wheel 37 | 2 . 2 . 4 1 4 2 . . . . 2 . 2 1 1 . 3 6 . 1 6 Hover . | . . . . . . . . . . . . . . . . . . . . . . . Flight . | . . . . . . . . . . . . . . . . . . . . . . . Utility 119 | 1 1 . 3 4 4 5 4 4 3 . 1 9 2 4 12 5 5 14 6 8 3 21 Device 50 | . . . . 2 2 1 1 2 . . . 1 1 . 4 3 2 8 4 3 2 14 Storage 9 | 1 1 . . 1 . 1 1 . . . . . . . . 1 . 2 . 1 . . Processor 9 | . . . 2 . . . . 1 . . . 1 . . . . 1 . . 1 . 3 Hackware 17 | . . . . . . 1 1 . 1 . 1 1 . 2 2 1 . 3 . 3 . 1 Protection 34 | . . . 1 1 2 2 1 1 2 . . 6 1 2 6 . 2 1 2 . 1 3 Artifact . | . . . . . . . . . . . . . . . . . . . . . . . Weapon 55 | 2 2 1 1 9 4 2 2 . 4 . . 3 . 1 3 4 . 2 3 3 2 7 Energy Gun 11 | 1 . 1 . 4 . . . . . . . . . . 1 . . . 1 . . 3 Energy Cannon 21 | . . . . 4 3 . . . . . . 3 . . 1 1 . 2 1 2 2 2 Ballistic Gun 6 | 1 1 . 1 . . . 1 . 1 . . . . . . . . . . 1 . . Ballistic Cannon . | . . . . . . . . . . . . . . . . . . . . . . . Launcher 9 | . 1 . . 1 1 1 . . 2 . . . . . . 2 . . . . . 1 Special Weapon 6 | . . . . . . 1 . . 1 . . . . 1 . 1 . . 1 . . 1 Impact Weapon . | . . . . . . . . . . . . . . . . . . . . . . . Slashing Weapon . | . . . . . . . . . . . . . . . . . . . . . . . Piercing Weapon 1 | . . . . . . . . . . . . . . . 1 . . . . . . . Special Melee Weapon 1 | . . . . . . . 1 . . . . . . . . . . . . . . . Unidentified Prototypes 22 | . . . . 5 . 1 . . 1 . . 1 . . . 1 . 5 4 . . 4 Corrupted Parts 5 | . . . . . . . . . . . . . . . . . . 1 . . . 4 System Corruption 35 | . . . . . . . . . . . . . . . . . . 1 . . . 34 Parts Lost 77 | . . 3 2 5 6 3 6 . 5 . . 1 . 1 8 2 . 4 1 . . 30 Power 10 | . . 1 . 1 . . 2 . 1 . . . . . 1 . . . . . . 4 Propulsion 21 | . . 2 . 3 2 2 1 . . . . . . 1 1 1 . 2 1 . . 5 Utility 31 | . . . . 1 2 1 2 . 2 . . 1 . . 4 1 . 1 . . . 16 Weapon 15 | . . . 2 . 2 . 1 . 2 . . . . . 2 . . 1 . . . 5 Highest Loss Streak 14 | . . 1 1 3 2 2 2 . 2 . . 1 . 1 3 1 . 2 1 . . 14 To Critical Strikes 3 | . . . . . . . . . . . . . . . 1 . . 1 . . . 1 Average Backups 16 | 3 10 13 11 15 15 15 15 13 15 17 16 16 14 13 15 17 18 18 18 18 17 16 Power 1 | . 1 . . 1 1 1 1 1 1 3 3 1 1 1 1 . . 1 1 2 2 2 Propulsion 1 | 1 6 5 5 2 1 1 1 2 2 2 2 2 3 2 1 . . . 1 1 1 . Utility 7 | . 1 3 3 3 5 8 8 7 8 9 8 7 6 6 7 9 9 9 8 9 7 7 Weapon 5 | . 2 3 3 8 7 4 3 3 2 2 2 3 3 3 3 7 8 7 5 5 6 4 Tool/Special . | . . . . . . . . . . . . . . . . . . . . . . . Unused Backups 39 | . 3 . . 4 3 3 1 . . . . 6 3 1 3 1 1 2 1 2 1 4 Power 7 | . . . . . . . 1 . . . . 2 1 . 1 . . 1 . 1 . . Propulsion 8 | . 3 . . 3 . . . . . . . 1 1 . . . . . . . . . Utility 13 | . . . . 1 2 . . . . . . 3 1 1 . . 1 1 1 1 . 1 Weapon 10 | . . . . . 1 3 . . . . . . . . 2 . . . . . 1 3 Tool/Special 1 | . . . . . . . . . . . . . . . . 1 . . . . . . Average Slot Usage (%) 85 | . 97 98 93 99 90 96 83 82 80 69 72 83 92 92 82 84 85 86 83 78 81 77 Engine 4 | . 14 12 11 11 11 9 2 . . . . 1 . . . . . 5 10 8 . . Core 3 | . . . . . . . 3 9 8 7 4 4 7 7 5 . . . 2 7 15 4 Reactor 2 | . . . . . . . . . . . . . . . 1 12 13 7 2 . . 8 Wheel 14 | . 28 27 22 21 15 16 11 9 9 7 7 11 15 15 10 13 13 13 17 17 15 9 Device 12 | . . . . 8 13 18 18 14 4 . . 9 15 13 6 11 15 22 14 11 16 19 Storage 8 | . 26 28 20 11 11 9 10 13 9 7 7 7 7 7 7 6 6 6 5 5 5 4 Processor 3 | . . . 11 13 11 7 . 5 9 7 7 7 7 7 1 . . . . . . . Hackware 3 | . . . . . . 7 2 . 4 7 14 5 . 4 8 4 3 . . 3 5 3 Protection 8 | . . . 5 11 7 1 9 4 9 7 7 10 15 11 16 14 12 9 9 6 8 6 Energy Gun 2 | . 6 10 16 7 5 . . . . . . . . . 3 5 . . 4 . . 3 Energy Cannon 10 | . . . . 13 12 16 10 9 10 7 7 13 15 15 11 7 13 13 9 6 8 7 Ballistic Gun 1 | . 21 15 5 . . . 6 9 4 7 7 1 . . . . . . . . . . Launcher 1 | . . 1 . . 4 1 1 . 1 . . 3 7 4 . 2 . 2 1 3 . 1 Special Weapon 2 | . . . . . . 8 5 . . . 6 3 . 2 4 2 6 2 . 1 5 2 Peak Build Rating 152 | 6 8 8 10 21 23 37 38 40 46 40 43 51 51 54 65 75 79 82 104 105 116 152 Average Rating 64 | 4 7 7 9 18 19 32 31 38 40 40 40 47 49 52 55 72 75 78 100 101 113 130 On Entrance 46 | . 6 8 8 10 21 23 33 36 40 40 40 39 50 51 50 59 73 79 79 103 99 114 Avg Prop Armor Cover (%) 4 | . . . . . . . . . . . . . . 7 6 . . . . 3 . . Naked Turns . | . . . . . . . . . . . . . . . . . . . . . . . Heaviest Build 203 | 13 35 34 36 64 64 76 99 99 72 69 71 91 94 92 98 103 107 116 152 152 159 203 Greatest Support 56 | 32 32 32 26 26 32 32 28 28 28 28 28 38 38 44 44 56 56 56 56 48 54 56 Greatest Overweight (x) 17 | . 1 2 1 3 3 6 7 3 2 2 2 3 2 4 5 1 1 3 3 7 3 17 Average Overweight (x) 2 | . . . 1 1 2 2 3 2 2 2 2 2 2 2 2 1 1 1 2 3 2 3 Largest Inventory Capacity 20 | 8 15 15 15 20 20 20 20 20 20 20 20 20 20 20 20 20 20 20 20 20 20 20 Average Capacity 19 | 6 14 15 15 16 20 20 20 20 20 20 20 20 20 20 20 20 20 20 20 20 20 20 Most Carried 20 | 7 15 14 15 17 20 20 20 20 20 20 20 20 20 20 20 20 20 20 20 20 20 20 Average Carried 18 | 3 10 13 11 15 18 19 19 19 19 20 19 19 19 19 18 19 19 19 19 19 19 18 Final Capacity 20 | 8 15 15 15 20 20 20 20 20 20 20 20 20 20 20 20 20 20 20 20 20 20 20 Final Carried 20 | 7 14 13 15 17 20 20 20 19 20 20 20 20 20 19 19 20 20 19 20 20 20 3 Class Distribution -------------------- 25% | Tank 18% | Commander-Tank 14% | Bothacker-Tank 11% | Mutant 10% | Commander-Mutant 8% | Bothacker-Mutant 4% | Scavenger-Tank 3% | Bothacker-Gunner Dominant Class ---------------- Mutant | -10/Materials Mutant | -10/Mines Mutant | -9/Materials Commander-Mutant | -9/Storage Commander-Mutant | -9/Garrison Bothacker-Tank | -8/Materials Scavenger-Mutant | -8/Garrison Scavenger-Mutant | -8/Materials Bothacker-Mutant | -8/Garrison Bothacker-Mutant | -7/Factory Bothacker-Gunner | -7/Waste Tank | -7/Factory Tank | -7/Garrison Tank | -7/Factory Bothacker-Tank | -7/Garrison Bothacker-Tank | -6/Factory Commander-Tank | -6/Garrison Commander-Tank | -6/Factory Tank | -5/Factory Commander-Tank | -5/Garrison Commander-Tank | -4/Factory Tank | -3/Research Resources | -11 -10 -10 -9 -9 -9 -8 -8 -8 -8 -7 -7 -7 -7 -7 -7 -6 -6 -6 -5 -5 -4 -3 ----------- Run | Yrd Mat Min Mat Sto Gar Mat Gar Mat Gar Fac Was Fac Gar Fac Gar Fac Gar Fac Fac Gar Fac Res Matter Collected 6418 | 263 208 104 62 283 220 192 257 . 362 . . 445 132 136 533 154 . 535 438 563 91 1440 Remotely . | . . . . . . . . . . . . . . . . . . . . . . . Salvage Created 21394 | 77 394 272 149 899 875 702 841 . 1217 . . 1051 225 193 833 802 . 1434 2235 1365 . 7830 Parts 986 | 1 39 22 8 45 65 32 42 . 61 . . 60 10 18 32 20 . 72 84 44 . 331 Haulers Intercepted 11 | . 1 . . 4 . 3 . . . . . . . . . 1 . 1 1 . . . Recyclers Shooed 14 | . . 1 . 2 . 1 . . . . . . . 1 . 1 . 1 2 . . 5 Parts Field Recycled . | . . . . . . . . . . . . . . . . . . . . . . . Retrieved Matter . | . . . . . . . . . . . . . . . . . . . . . . . Parts Self-Destructed . | . . . . . . . . . . . . . . . . . . . . . . . Prevented . | . . . . . . . . . . . . . . . . . . . . . . . Parts Restored . | . . . . . . . . . . . . . . . . . . . . . . . Kills | -11 -10 -10 -9 -9 -9 -8 -8 -8 -8 -7 -7 -7 -7 -7 -7 -6 -6 -6 -5 -5 -4 -3 ------- Run | Yrd Mat Min Mat Sto Gar Mat Gar Mat Gar Fac Was Fac Gar Fac Gar Fac Gar Fac Fac Gar Fac Res Combat Hostiles Destroyed 321 | . 11 8 3 12 24 10 15 . 25 . . 14 4 3 16 8 . 19 34 20 . 95 Melee 2 | . . . . . . . . . . . . . . . 1 . . . . . . 1 Guns 47 | . 5 4 3 . 7 . 2 . 2 . . . . . 1 4 . . 6 . . 13 Cannons 111 | . . . . 8 8 5 7 . 14 . . 6 2 1 9 1 . 13 11 8 . 18 AOE 106 | . 6 4 . 4 8 4 5 . 7 . . 8 . 2 2 2 . 5 14 10 . 25 Classes Destroyed 23 | 1 6 . 1 3 2 1 . . 2 . . . . . . . . . 2 . . 5 Worker 18 | . 3 . . 2 . 2 . . . . . 1 . . . . . 2 2 . . 6 Builder 18 | . 1 1 . . . . . . . . . 4 . . . 2 . . . . . 10 Tunneler 1 | . . . . . . . . . . . . . . . . . . . 1 . . . Hauler 11 | . 1 . . 4 . 3 . . . . . . . . . 1 . 1 1 . . . Recycler 11 | 1 . 1 . 2 . . . . . . . 1 . . . 2 . 1 1 . . 2 Mechanic 3 | . . . . 1 . 1 . . . . . . . . . . . . . . . 1 Operator 3 | . 1 . . . . . . . . . . . . 1 . . . . 1 . . . Watcher 5 | . . . . 1 . . . . . . . 1 . 1 1 . . . . . . 1 Swarmer 63 | . 6 6 . 3 7 2 6 . 3 . . . . . . 4 . 4 14 8 . . Saboteur 5 | . . . . . . . . . . . . . . . . . . . . . . 5 Grunt 134 | . 5 2 1 3 10 3 5 . 11 . . 6 . 2 10 2 . 8 11 6 . 49 Brawler 12 | . . . . 1 . 2 1 . 1 . . 4 . . 1 . . 1 . . . 1 Duelist 8 | . . . . . 1 . . . 1 . . . . . . . . . 2 . . 4 Protector 1 | . . . . . . . . . . . . . . . . . . . . . . 1 Sentry 40 | . . . 2 5 4 2 4 . 1 . . 2 4 . 2 1 . 1 2 4 . 6 Demolisher 1 | . . . . . . 1 . . . . . . . . . . . . . . . . Specialist 7 | . . . . . . . . . 2 . . . . . . . . 1 . 1 . 3 Hunter 18 | . . . . . . . . . 1 . . . . . 1 . . 5 . 1 . 10 Programmer 35 | . . . . . 4 . . . 5 . . 2 . 1 2 1 . 1 4 . . 15 Heavy 2 | . . . . . . . . . . . . . . . . . . . . . . 2 Behemoth 1 | . . . . . . . . . . . . . . . . . . . 1 . . . Investigator 1 | . . . . . . . . . . . . . . . . . . . . . . 1 Executioner 1 | . . . . . . . . . . . . . . . . . . . . . . 1 Savage 1 | . . . . . . . . . . . . . . . . . . 1 . . . . Best Kill Streak 23 | 1 4 3 1 9 6 4 9 . 5 . . 12 2 2 3 7 . 9 13 5 . 23 Combat Bots Only 19 | . 3 3 1 5 6 3 9 . 5 . . 6 2 2 3 5 . 7 12 5 . 19 Max Kills in Single Turn 15 | 1 3 2 1 2 3 3 3 . 2 . . 4 1 1 1 2 . 2 3 2 . 15 Gunslinging 1 | . . 1 . . . . . . . . . . . . . . . . . . . . Exploded 6 | . 3 2 . 2 3 3 3 . 2 . . 2 . 1 1 1 . 2 3 2 . 6 Melee 1 | . . . . . . . . . . . . . . . 1 . . . . . . 1 Uniques/NPCs Destroyed . | . . . . . . . . . . . . . . . . . . . . . . . Combat | -11 -10 -10 -9 -9 -9 -8 -8 -8 -8 -7 -7 -7 -7 -7 -7 -6 -6 -6 -5 -5 -4 -3 -------- Run | Yrd Mat Min Mat Sto Gar Mat Gar Mat Gar Fac Was Fac Gar Fac Gar Fac Gar Fac Fac Gar Fac Res Hostile Shots Fired 2587 | . 32 21 20 44 94 56 90 . 124 . . 97 108 8 333 110 . 222 160 74 . 994 Missed 893 | . 9 4 8 19 25 22 23 . 31 . . 36 46 3 136 34 . 65 60 22 . 350 Hits 1694 | . 23 17 12 25 69 34 67 . 93 . . 61 62 5 197 76 . 157 100 52 . 644 Melee 51 | . . . . . 2 . . . . . . 4 . . 1 . . . 4 . . 40 Projectile 1643 | . 23 17 12 25 67 34 67 . 93 . . 57 62 5 196 76 . 157 96 52 . 604 AOE 5 | . . . . . . 3 . . . . . . . . 1 . . . . . . 1 Critical Strikes 78 | . 2 . . 1 2 . . . 9 . . 1 . 2 9 1 . 3 4 2 2 40 Part Disruptions 6 | . . . . . 1 . . . . . . . . 1 . . . . . 2 . 2 Damage Taken 20863 | . 273 240 162 525 1012 469 809 . 1524 . . 870 328 175 2345 908 . 948 1193 489 103 8490 Core 2901 | . 30 36 28 86 226 38 86 . 231 . . 70 13 16 334 201 . 119 48 24 . 1315 Absorbed by Shields 8818 | . . . . . 44 128 112 . . . . 52 180 . 131 194 . 1172 640 340 . 5825 Ignored by Resistances 2296 | . . . . . . . . . . . . . . . 68 . . 403 238 158 28 1401 Regen/Repaired (Parts) 99 | . . . 57 . . . . . . . . . . . . . . . . . 42 . Core Remaining (%) 64 | 100 . 73 . . 15 . . . 35 . . . . . 38 . . 62 . 92 100 . Volleys Fired 981 | 1 34 19 15 46 87 43 53 . 68 . 8 35 16 18 65 38 15 41 67 93 10 209 Largest 4 | 2 2 2 2 2 2 2 2 . 2 . 1 3 2 2 3 3 1 3 3 3 1 4 Hottest 383 | 60 60 60 80 136 136 136 136 . 136 . 5 196 160 160 196 268 35 185 242 235 110 383 Shots Fired 1711 | 2 66 35 24 79 143 72 91 . 119 . 8 53 26 24 118 70 19 77 137 114 10 424 Gun 473 | 2 64 32 24 21 36 . 34 . 23 . . . . . 20 30 . . 48 7 . 132 Cannon 1000 | . . . . 53 101 60 48 . 83 . . 32 26 17 88 29 19 64 72 73 5 230 Launcher 152 | . 2 3 . 5 6 4 5 . 13 . . 13 . 5 4 8 . 9 15 19 . 41 Special 86 | . . . . . . 8 4 . . . 8 8 . 2 6 3 . 4 2 15 5 21 Kinetic 126 | 1 46 16 3 3 . . 34 . 23 . . . . . . . . . . . . . Thermal 1185 | 1 18 . 11 55 101 60 48 . 83 . . 32 26 17 108 59 19 64 120 80 . 283 Explosive 16 | . 2 3 . 5 6 . . . . . . . . . . . . . . . . . Electromagnetic 298 | . . 16 10 16 36 4 5 . 13 . . 13 . 5 4 8 . 9 15 19 5 120 Robot Hit Streak 27 | 2 15 4 6 14 8 12 16 . 24 . 4 10 13 14 11 9 6 7 9 27 6 16 Robot Miss Streak 10 | . 3 3 2 4 3 2 3 . 2 . 2 4 1 3 2 10 1 3 3 3 1 7 Penetration Max . | . . . . . . . . . . . . . . . . . . . . . . . Secondary Targets 1 | . . 1 . . . . . . . . . . . . . . . . . . . . Max Gunslinging Chain 1 | . . 1 . . . . . . . . . . . . . . . . . . . . Shots Hit Robots 1007 | 2 44 15 17 46 69 49 64 . 79 . 5 31 16 14 63 40 3 47 80 65 8 250 Core Hits 712 | 2 25 16 6 27 36 22 39 . 45 . . 36 5 9 22 15 1 39 64 37 1 265 Critical Kills 12 | . . . . . 1 1 1 . 1 . . . 2 . . . . . . . . 6 Critical Parts Destroyed . | . . . . . . . . . . . . . . . . . . . . . . . Critical Strikes 19 | . . 1 1 . 1 1 1 . 1 . . . 2 . . . . . 2 . . 9 Burn 4 | . . . . . . . . . . . . . . . . . . . 2 . . 2 Meltdown 12 | . . . . . 1 1 1 . 1 . . . 2 . . . . . . . . 6 Corrupt 3 | . . 1 1 . . . . . . . . . . . . . . . . . . 1 Melee Attacks 9 | . . . . . . . . . 2 . . . . . 7 . . . . . . . Impact . | . . . . . . . . . . . . . . . . . . . . . . . Slashing . | . . . . . . . . . . . . . . . . . . . . . . . Piercing 7 | . . . . . . . . . . . . . . . 7 . . . . . . . Sneak Attacks 1 | . . . . . . . . . . . . . . . 1 . . . . . . . Combat Hostiles . | . . . . . . . . . . . . . . . . . . . . . . . Follow-up Attacks . | . . . . . . . . . . . . . . . . . . . . . . . Damage Inflicted 45220 | 24 792 545 178 1320 1812 1403 1644 . 2568 . . 1970 461 567 1939 1903 93 2518 4113 3066 28 18276 Guns 6295 | 24 553 207 178 187 357 . 239 . 232 . . . . . 148 599 . . 977 100 . 2494 Cannons 19303 | . . . . 717 1150 951 782 . 1424 . . 553 461 274 1272 689 93 1416 1852 1738 28 5903 Explosions 19406 | . 239 337 . 410 305 452 623 . 912 . . 1417 . 293 310 615 . 1102 1284 1228 . 9879 Melee 209 | . . . . . . . . . . . . . . . 209 . . . . . . . Ramming 7 | . . 1 . 6 . . . . . . . . . . . . . . . . . . Kinetic 1051 | 12 431 95 24 18 . . 239 . 232 . . . . . . . . . . . . . Thermal 27354 | 12 122 119 65 741 1276 1041 976 . 1487 . . 846 461 371 1469 1558 93 1713 2993 1987 . 10024 Explosive 1669 | . 239 218 . 410 179 . . . . . . . . . . . . . . . . 623 Electromagnetic 14930 | . . 112 89 145 357 362 429 . 849 . . 1124 . 196 261 345 . 805 1120 1079 28 7629 Impact . | . . . . . . . . . . . . . . . . . . . . . . . Slashing . | . . . . . . . . . . . . . . . . . . . . . . . Piercing 209 | . . . . . . . . . . . . . . . 209 . . . . . . . Highest Corruption 81 | . . . . . 6 . . . 2 . 17 25 25 27 29 4 4 6 2 1 1 81 Average Corruption 14 | . . . . . 3 . . . 1 . 12 21 25 25 28 2 4 3 1 1 1 27 Corruption Purged 8 | . . . . . . . . . . . . . . . . . . 4 4 . . . Corruption Blocked 20 | . . . . . . . . . . . . . . . . . . . . . . 20 Effects 380 | . . . . . 10 . . . 4 . 10 50 18 27 80 3 22 20 10 3 2 121 Message Errors 84 | . . . . . 2 . . . 1 . . 16 3 2 20 1 6 6 3 3 1 20 Matter Fused 80 | . . . . . 3 . . . 1 . 2 11 7 8 20 1 5 3 3 . . 16 Heat Flow Errors 37 | . . . . . 1 . . . . . 1 3 2 5 9 . 2 3 1 . . 10 Energy Discharges 36 | . . . . . 1 . . . 1 . . 5 2 4 7 . 2 4 . . . 10 Parts Rejected 9 | . . . . . . . . . . . 1 . 1 . 2 . . . . . . 5 Parts Fused 4 | . . . . . . . . . . . 1 . . . 1 . . . . . . 2 Data Loss (minor) 46 | . . . . . 1 . . . 1 . 3 8 1 5 11 1 2 1 1 . 1 10 Data Loss (major) 11 | . . . . . . . . . . . . 4 . . 1 . 1 1 . . . 4 Misfires 14 | . . . . . 2 . . . . . . 1 . . 4 . 4 . . . . 3 Alerts 8 | . . . . . . . . . . . . . . . 1 . . 2 1 . . 4 Misdirections 15 | . . . . . . . . . . . 2 2 1 1 . . . . . . . 9 Weapon Failures 36 | . . . . . . . . . . . . . 1 2 4 . . . 1 . . 28 Overload Shots 43 | . . . . . . . . . . . . . . . . 1 . 2 18 22 . . Effects 5 | . . . . . . . . . . . . . . . . . . . 3 2 . . Energy Bleed 4 | . . . . . . . . . . . . . . . . . . . 2 2 . . Heat Surge 1 | . . . . . . . . . . . . . . . . . . . 1 . . . Overflow Damage 873 | . 2 3 . 2 53 . 5 . 58 . . 58 . . 56 114 . 80 64 66 . 312 Projectiles 485 | . . . . 2 53 . . . 56 . . . . . 50 51 . 2 48 36 . 187 Explosions 383 | . 2 3 . . . . 5 . 2 . . 58 . . 1 63 . 78 16 30 . 125 Melee 5 | . . . . . . . . . . . . . . . 5 . . . . . . . Knockbacks . | . . . . . . . . . . . . . . . . . . . . . . . Impact . | . . . . . . . . . . . . . . . . . . . . . . . Kinetic . | . . . . . . . . . . . . . . . . . . . . . . . Secondary . | . . . . . . . . . . . . . . . . . . . . . . . Self-Inflicted Damage 1536 | . . 38 . 88 22 11 14 . 40 . . 148 . 37 42 131 . 94 23 41 . 807 Shots 99 | . . 1 . 2 3 1 2 . 2 . . 6 . 2 3 3 . 5 3 5 . 61 Rammed 2 | . . 1 . 1 . . . . . . . . . . . . . . . . . . Targets Rammed 2 | . . 1 . 1 . . . . . . . . . . . . . . . . . . Kicked . | . . . . . . . . . . . . . . . . . . . . . . . Crushed . | . . . . . . . . . . . . . . . . . . . . . . . Highest Temperature 662 | . 24 27 81 245 107 69 198 . 299 . 161 244 155 194 662 250 167 174 88 199 . 399 Average Temperature 95 | . 11 14 32 95 27 14 66 . 102 . 87 101 47 47 134 101 90 61 31 80 . 105 Received Heat Transfer 4122 | . 153 63 78 126 141 131 301 . 576 . . 211 103 72 703 70 . 169 128 93 27 977 Effects 19 | . . . . . . . . . . . . . . . 16 . . . . . . 3 Shutdowns 5 | . . . . . . . . . . . . . . . 4 . . . . . . 1 Energy Bleed 1 | . . . . . . . . . . . . . . . . . . . . . . 1 Interference 2 | . . . . . . . . . . . . . . . 2 . . . . . . . Matter Decay 1 | . . . . . . . . . . . . . . . 1 . . . . . . . Short Circuit 3 | . . . . . . . . . . . . . . . 3 . . . . . . . Damage (minor) 3 | . . . . . . . . . . . . . . . 2 . . . . . . 1 Damage (major) 3 | . . . . . . . . . . . . . . . 3 . . . . . . . Damage (core) 1 | . . . . . . . . . . . . . . . 1 . . . . . . . Siege Activations . | . . . . . . . . . . . . . . . . . . . . . . . Martial Activations . | . . . . . . . . . . . . . . . . . . . . . . . Shielding Activations . | . . . . . . . . . . . . . . . . . . . . . . . Robots Disrupted 5 | . . . . . . . . . . . . . . . . . . . . . . 5 Combat Hostiles 5 | . . . . . . . . . . . . . . . . . . . . . . 5 Robots Corrupted 38 | . . . . . . . . . 1 . . . . . 1 . . 2 1 2 . 31 Combat Hostiles 36 | . . . . . . . . . 1 . . . . . 1 . . 1 1 2 . 30 Parts Fried 86 | . . . . . 1 1 . . 1 . . 2 . . 2 2 . 3 . 4 . 70 Impact Corruptions . | . . . . . . . . . . . . . . . . . . . . . . . Robots Melted 19 | . . . . . 1 1 1 . 1 . . . 2 . 2 1 . . 2 . . 8 Combat Hostiles 19 | . . . . . 1 1 1 . 1 . . . 2 . 2 1 . . 2 . . 8 Parts Melted 80 | . . . . 1 3 4 3 . 10 . . 1 1 . 1 3 . 5 14 6 . 28 Heat Transferred 35484 | 25 275 150 150 1345 1955 1752 1706 . 2431 . . 1400 900 550 2301 1730 124 2395 4691 2673 . 8931 Parts Sabotaged 11 | . . . . . . . . . . . . . . . . . . . . . . 11 Parts Stolen . | . . . . . . . . . . . . . . . . . . . . . . . Parts Stripped . | . . . . . . . . . . . . . . . . . . . . . . . Power Chain Reactions 41 | . . 1 . 2 2 1 2 . 2 . . 6 . 1 1 . . 4 3 1 . 15 Alert | -11 -10 -10 -9 -9 -9 -8 -8 -8 -8 -7 -7 -7 -7 -7 -7 -6 -6 -6 -5 -5 -4 -3 ------- Run | Yrd Mat Min Mat Sto Gar Mat Gar Mat Gar Fac Was Fac Gar Fac Gar Fac Gar Fac Fac Gar Fac Res Maximum Alert Level 5 | . . . . 3 5 4 3 2 4 2 1 1 1 . 2 2 2 5 5 5 4 5 Low Security (%) 19 | 100 100 100 100 43 . . . . . . 90 55 4 100 26 . . 13 . . . . Level 1 15 | . . . . 7 . . . 60 9 . 9 44 95 . 50 64 13 42 . . . . Level 2 19 | . . . . 48 19 . 19 39 17 100 . . . . 22 35 86 20 . . . 33 Level 3 18 | . . . . . 34 93 80 . 48 . . . . . . . . . 66 . . 15 Level 4 14 | . . . . . 24 6 . . 24 . . . . . . . . 11 28 24 100 26 Level 5 8 | . . . . . 21 . . . . . . . . . . . . 1 5 75 . 3 High Security 3 | . . . . . . . . . . . . . . . . . . 8 . . . 20 Max Security . | . . . . . . . . . . . . . . . . . . . . . . . Peak Influence 2704 | 5 171 158 80 705 2023 1124 861 419 1132 594 204 356 350 183 615 445 685 1669 1811 2339 1378 2704 Initial 1264 | . . 63 40 12 427 986 586 419 239 594 204 58 186 183 30 322 286 359 1100 1264 1227 675 Average 769 | . 87 111 52 347 1150 1030 745 397 853 589 154 159 284 95 298 381 480 582 1188 1789 1225 1195 Influence Increases 15680 | 5 397 273 120 1131 1756 547 355 . 963 . . 540 164 101 785 429 399 2081 1191 1095 321 3027 Destroy 0b10 Robot/C 7940 | . 220 160 60 440 1000 380 300 . 500 . . 340 80 60 340 200 . 700 680 420 100 1960 Destroy 0b10 Robot/NC 510 | 5 30 10 . 55 . 45 10 . . . . 35 . 10 5 25 . 105 30 15 5 125 Destroy Leader 1292 | . 52 30 30 152 20 70 40 . 50 . . 72 . 12 30 42 . 166 122 30 32 342 Allied During Kill 1750 | . . . . 165 369 42 . . . . . 9 . 4 11 19 . 830 . 141 112 48 Trap Triggered on 0b10 30 | . . . . . . . . . . . . . 10 . 20 . . . . . . . Successful Hack 217 | . 19 . . 27 . 6 . . . . . . 14 . 21 4 14 32 11 21 5 43 Select Force Hacks 150 | . 60 . 30 60 . . . . . . . . . . . . . . . . . . Disable Machine 825 | . . 15 . 150 . . . . . . . 60 30 15 30 90 . 150 225 15 15 30 Anti-Garrison Action 1150 | . . . . . 250 . . . 50 . . . . . 200 . 350 . . 300 . . Destroy Structure 1111 | . 16 13 . 67 117 4 5 . 78 . . 24 15 . 53 34 35 83 108 93 52 314 Partial Spotted 15 | . . . . . . . . . . . . . . . . . . 15 . . . . Lose Combat Pursuer 690 | . . 45 . 15 . . . . 285 . . . 15 . 75 15 . . 15 60 . 165 Influence Decreases 13297 | 5 234 330 196 503 391 1667 397 492 200 548 500 358 80 407 214 635 123 1118 1325 563 1374 1637 Entered New Map 7395 | . . 100 66 18 231 1037 317 442 130 538 380 26 80 167 14 293 123 326 841 543 1112 611 Time Decay 3902 | 5 234 190 110 395 . 310 . 50 . 10 100 302 . 230 . 262 . 422 474 . 222 586 Lost Part 770 | . . 30 20 50 60 30 60 . 50 . . 10 . 10 80 20 . 40 10 . . 300 Lost Ally 1080 | . . 10 . 40 100 140 20 . 20 . 20 20 . . 120 60 . 330 . 20 40 140 Purge Threat 150 | . . . . . . 150 . . . . . . . . . . . . . . . . Squads Dispatched 71 | . 4 . 1 3 . 2 . . . . . 3 . . . 1 . 15 10 . 1 31 Investigation 8 | . 2 . 1 3 . 1 . . . . . . . . . . . 1 . . . . Extermination 14 | . . . . . . . . . . . . 3 . . . 1 . 3 3 . 1 3 Reinforcement 19 | . 2 . . . . . . . . . . . . . . . . 6 4 . . 7 Assault 23 | . . . . . . 1 . . . . . . . . . . . 5 2 . . 15 Garrison 7 | . . . . . . . . . . . . . . . . . . . 1 . . 6 Intercept . | . . . . . . . . . . . . . . . . . . . . . . . Searches Triggered . | . . . . . . . . . . . . . . . . . . . . . . . Construction Impeded 8 | . . . . . . . . . . . . . . . . . . 4 3 . . 1 Haulers Reinforced . | . . . . . . . . . . . . . . . . . . . . . . . Active Scanning Responses . | . . . . . . . . . . . . . . . . . . . . . . . Cargo Convoy Interrupts 1 | . . . . . . . . . . . . . . . . . . 1 . . . . Alert ID Control Effect 13 | . . . . . . . . . . . . . . 1 5 . . 1 . 5 . 1 Stealth | -11 -10 -10 -9 -9 -9 -8 -8 -8 -8 -7 -7 -7 -7 -7 -7 -6 -6 -6 -5 -5 -4 -3 --------- Run | Yrd Mat Min Mat Sto Gar Mat Gar Mat Gar Fac Was Fac Gar Fac Gar Fac Gar Fac Fac Gar Fac Res Distress Signals 18 | . 2 . . . . 3 . . . . . 1 . . 1 . . 2 3 . . 6 Communications Jammed . | . . . . . . . . . . . . . . . . . . . . . . . Distress Signals . | . . . . . . . . . . . . . . . . . . . . . . . Times Spotted 579 | . 18 11 4 20 40 36 19 1 37 . 5 31 6 8 36 13 . 55 43 29 6 161 Peak Tracking Total 16 | . 3 3 1 4 4 9 7 2 6 . 2 8 3 3 11 4 . 11 6 7 2 16 Tactical Retreats 23 | . . 2 . 1 . . . . 4 . . . 1 . 2 1 . 1 1 2 . 8 ECM-based Alert Blocks 2 | . . . . . . . . . . . . . . . . . . 2 . . . . Traps | -11 -10 -10 -9 -9 -9 -8 -8 -8 -8 -7 -7 -7 -7 -7 -7 -6 -6 -6 -5 -5 -4 -3 ------- Run | Yrd Mat Min Mat Sto Gar Mat Gar Mat Gar Fac Was Fac Gar Fac Gar Fac Gar Fac Fac Gar Fac Res Traps Triggered 58 | . . . . 6 5 . 5 . 4 1 . 7 . 2 10 1 2 1 4 9 . 1 Indirectly 9 | . . . . . . . . . 2 . . 1 . . 2 . . . 3 1 . . Trap Hack Attempts . | . . . . . . . . . . . . . . . . . . . . . . . Triggered . | . . . . . . . . . . . . . . . . . . . . . . . Disarmed . | . . . . . . . . . . . . . . . . . . . . . . . Reprogrammed . | . . . . . . . . . . . . . . . . . . . . . . . Reused 3 | . . . . . . . . . . . . . 1 . 2 . . . . . . . Traps Extracted . | . . . . . . . . . . . . . . . . . . . . . . . Installed 5 | . . . . . . . . . . . . . 2 . 3 . . . . . . . Triggered 3 | . . . . . . . . . . . . . 1 . 2 . . . . . . . Most Traps Carried 3 | . . . . . . . . . . . . . 3 3 3 . . . . . . . Machines | -11 -10 -10 -9 -9 -9 -8 -8 -8 -8 -7 -7 -7 -7 -7 -7 -6 -6 -6 -5 -5 -4 -3 ---------- Run | Yrd Mat Min Mat Sto Gar Mat Gar Mat Gar Fac Was Fac Gar Fac Gar Fac Gar Fac Fac Gar Fac Res Machines Disabled 66 | . . 1 . 10 4 . . . 1 . . 4 2 1 4 6 . 10 15 5 1 2 Max in Single Turn 7 | . . 1 . 4 1 . . . 1 . . 3 1 1 1 6 . 1 7 1 . 1 Garrison Access 3 | . . . . . . . . . . . . . . . . . . . . . . 3 Garrison Relay 8 | . . . . . 3 . . . 1 . . . . . 1 . . . . 3 . . Machines Repaired . | . . . . . . . . . . . . . . . . . . . . . . . Machines Dismantled . | . . . . . . . . . . . . . . . . . . . . . . . Machines Sabotaged . | . . . . . . . . . . . . . . . . . . . . . . . Overloaded Fab Kills . | . . . . . . . . . . . . . . . . . . . . . . . Hacking | -11 -10 -10 -9 -9 -9 -8 -8 -8 -8 -7 -7 -7 -7 -7 -7 -6 -6 -6 -5 -5 -4 -3 --------- Run | Yrd Mat Min Mat Sto Gar Mat Gar Mat Gar Fac Was Fac Gar Fac Gar Fac Gar Fac Fac Gar Fac Res Machines Accessed 68 | . 5 . 3 11 2 7 . 1 1 . . 6 1 3 2 2 3 4 2 3 2 10 Terminals 41 | . 3 . 1 8 2 6 . . 1 . . 3 1 . 2 1 3 3 1 3 . 3 Fabricators 5 | . . . . . . . . . . . . . . 1 . . . 1 . . 1 2 Repair Stations 4 | . . . 1 . . . . . . . . 2 . . . . . . . . 1 . Recycling Units 5 | . 2 . 1 2 . . . . . . . . . . . . . . . . . . Scanalyzers 3 | . . . . . . . . . . . . . . 1 . . . . . . . 2 Garrison Access 10 | . . . . 1 . 1 . 1 . . . 1 . 1 . 1 . . 1 . . 3 Total Hacks 142 | . 11 . 7 23 2 17 . 1 1 . . 10 1 5 5 6 5 8 5 9 8 18 Successful 69 | . 7 . 6 13 1 6 . 1 1 . . 2 1 3 2 3 2 4 3 3 4 7 Failed 73 | . 4 . 1 10 1 11 . . . . . 8 . 2 3 3 3 4 2 6 4 11 Catastrophic 18 | . 1 . . 2 1 2 . . . . . 3 . . . 1 1 1 . . . 6 Database Lockouts . | . . . . . . . . . . . . . . . . . . . . . . . Manual 53 | . 10 . 3 12 . 15 . . . . . . . . . 3 . 2 4 . 3 1 Terminals 95 | . 8 . 2 20 2 16 . . 1 . . 5 1 . 5 4 5 6 4 9 . 7 Fabricators 13 | . . . . . . . . . . . . . . 2 . . . 2 . . 5 4 Repair Stations 9 | . . . 3 . . . . . . . . 3 . . . . . . . . 3 . Recycling Units 7 | . 3 . 2 2 . . . . . . . . . . . . . . . . . . Scanalyzers 4 | . . . . . . . . . . . . . . 2 . . . . . . . 2 Garrison Access 14 | . . . . 1 . 1 . 1 . . . 2 . 1 . 2 . . 1 . . 5 Terminal Hacks 24 | . . . . 7 1 2 . . 1 . . . 1 . 2 1 2 1 . 3 . 3 Record 1 | . . . . . . . . . . . . . . . . . . . . . . 1 Part Schematic 3 | . . . . 2 . . . . . . . . . . . . . . . . . 1 Robot Analysis 1 | . . . . 1 . . . . . . . . . . . . . . . . . . Open Door 5 | . . . . 3 . . . . . . . . . . 1 . . . . 1 . . Branch Access Points 1 | . . . . . . . . . . . . . . . . . . 1 . . . . Emergency Access Points 5 | . . . . . 1 . . . . . . . . . 1 1 1 . . 1 . . Terminal Index 1 | . . . . . . 1 . . . . . . . . . . . . . . . . Unreport Threat 1 | . . . . . . 1 . . . . . . . . . . . . . . . . Locate Traps 1 | . . . . 1 . . . . . . . . . . . . . . . . . . Registered Components 1 | . . . . . . . . . . . . . . . . . . . . . . 1 Garrison Registry 2 | . . . . . . . . . . . . . 1 . . . . . . 1 . . Patrol Navigation 1 | . . . . . . . . . . . . . . . . . 1 . . . . . Security Stations 1 | . . . . . . . . . 1 . . . . . . . . . . . . . Fabricator Hacks 5 | . . . . . . . . . . . . . . 1 . . . 2 . . 2 . Network Status 3 | . . . . . . . . . . . . . . 1 . . . 1 . . 1 . Build 2 | . . . . . . . . . . . . . . . . . . 1 . . 1 . Repair Station Hacks 4 | . . . 2 . . . . . . . . . . . . . . . . . 2 . Scan Component 2 | . . . 1 . . . . . . . . . . . . . . . . . 1 . Repair 2 | . . . 1 . . . . . . . . . . . . . . . . . 1 . Recycling Unit Hacks 2 | . 1 . 1 . . . . . . . . . . . . . . . . . . . Report Inventory 2 | . 1 . 1 . . . . . . . . . . . . . . . . . . . Scanalyzer 1 | . . . . . . . . . . . . . . 1 . . . . . . . . Insert Component 1 | . . . . . . . . . . . . . . 1 . . . . . . . . Garrison Access Hacks 13 | . . . . 1 . 1 . 1 . . . 2 . 1 . 2 . . 1 . . 4 Unlock Access 7 | . . . . 1 . 1 . 1 . . . 1 . 1 . 1 . . 1 . . . Seal Access 3 | . . . . . . . . . . . . . . . . . . . . . . 3 Coupler Status 3 | . . . . . . . . . . . . 1 . . . 1 . . . . . 1 Unauthorized Hacks 20 | . 6 . 3 5 . 3 . . . . . . . . . . . 1 2 . . . Terminals 14 | . 4 . 1 3 . 3 . . . . . . . . . . . 1 2 . . . Assimilate 3 | . 2 . . . . . . . . . . . . . . . . 1 . . . . Botnet 7 | . 1 . 1 2 . 2 . . . . . . . . . . . . 1 . . . Operators 4 | . 1 . . 1 . 1 . . . . . . . . . . . . 1 . . . Fabricators . | . . . . . . . . . . . . . . . . . . . . . . . Repair Stations 1 | . . . 1 . . . . . . . . . . . . . . . . . . . Mechanics 1 | . . . 1 . . . . . . . . . . . . . . . . . . . Recycling Units 5 | . 2 . 1 2 . . . . . . . . . . . . . . . . . . Tunnel 5 | . 2 . 1 2 . . . . . . . . . . . . . . . . . . Scanalyzers . | . . . . . . . . . . . . . . . . . . . . . . . Garrison Access . | . . . . . . . . . . . . . . . . . . . . . . . Data Cores Recovered 2 | . . . . . . . . . . . . . . . . . . 1 . . . 1 Used . | . . . . . . . . . . . . . . . . . . . . . . . Hacking Detections 54 | . 3 . 2 6 1 7 . 1 . . . 6 1 2 2 1 3 4 2 3 2 8 Full Trace Events 4 | . . . . . . . . . . . . . . . 1 . 1 1 . 1 . . Feedback Events . | . . . . . . . . . . . . . . . . . . . . . . . Feedback Blocked . | . . . . . . . . . . . . . . . . . . . . . . . Robot Schematics Acquired . | . . . . . . . . . . . . . . . . . . . . . . . Robots Built 2 | . . . . . . . . . . . . . . . . . . 2 . . . . Authchips . | . . . . . . . . . . . . . . . . . . . . . . . Time 152 | . . . . . . . . . . . . . . . . . . 152 . . . . Total Robot Build Rating 10 | . . . . . . . . . . . . . . . . . . 10 . . . . Part Schematics Acquired 3 | . . . . 2 . . . . . . . . . . . . . . . . . 1 Parts Built 1 | . . . . . . . . . . . . . . . . . . . . . 1 . Authchips . | . . . . . . . . . . . . . . . . . . . . . . . Time 128 | . . . . . . . . . . . . . . . . . . . . . 128 . Total Part Build Rating 8 | . . . . . . . . . . . . . . . . . . . . . 8 . Part Studies Acquired . | . . . . . . . . . . . . . . . . . . . . . . . Parts Repaired 2 | . . . 1 . . . . . . . . . . . . . . . . . 1 . Time 88 | . . . 26 . . . . . . . . . . . . . . . . . 62 . Parts Recycled . | . . . . . . . . . . . . . . . . . . . . . . . Recycled Matter . | . . . . . . . . . . . . . . . . . . . . . . . Retrieved Matter . | . . . . . . . . . . . . . . . . . . . . . . . Retrieved Components . | . . . . . . . . . . . . . . . . . . . . . . . Parts Scanalyzed 1 | . . . . . . . . . . . . . . 1 . . . . . . . . Part Schematics Acquired . | . . . . . . . . . . . . . . . . . . . . . . . Parts Damaged . | . . . . . . . . . . . . . . . . . . . . . . . Bothacking | -11 -10 -10 -9 -9 -9 -8 -8 -8 -8 -7 -7 -7 -7 -7 -7 -6 -6 -6 -5 -5 -4 -3 ------------ Run | Yrd Mat Min Mat Sto Gar Mat Gar Mat Gar Fac Was Fac Gar Fac Gar Fac Gar Fac Fac Gar Fac Res Used RIF Installer 7 | . . . . . 1 . 1 . 1 . . . 1 . 1 . 1 . . 1 . . Coupler Efficiency 1 | . . . . . . . . . . . . . . . . . 1 . . . . . Hotswap 1 | . . . . . . . . . . . . . 1 . . . . . . . . . Code Merge 1 | . . . . . . . . . . . . . . . 1 . . . . . . . Patrol Navigation 1 | . . . . . . . 1 . . . . . . . . . . . . . . . Alert ID Control 1 | . . . . . . . . . 1 . . . . . . . . . . . . . Autoassimilate 1 | . . . . . . . . . . . . . . . . . . . . 1 . . Robots Hacked 53 | . . . . . . 6 4 . 2 . 6 5 . 1 5 2 . 3 2 7 4 6 Non-combat 12 | . . . . . . . . . . . . 2 . . . . . . 2 . 4 4 Combat 41 | . . . . . . 6 4 . 2 . 6 3 . 1 5 2 . 3 . 7 . 2 Robot Hacks Applied 59 | . . . . . . 6 4 . 2 . 7 5 . 2 6 3 . 4 2 7 4 7 parse_system 2 | . . . . . . . . . . . 1 . . . . . . . 1 . . . find_chute 1 | . . . . . . . . . . . . . . . . . . . 1 . . . map_earth 1 | . . . . . . . . . . . . 1 . . . . . . . . . . drop_inventory 1 | . . . . . . . . . . . . . . . . . . . . . . 1 locate_stockpiles 1 | . . . . . . . . . . . . . . . . . . . . . . 1 find_recycling 2 | . . . . . . . . . . . . . . . . . . . . . 1 1 find_station 1 | . . . . . . . . . . . . . . . . . . . . . 1 . map_route 4 | . . . . . . . . . . . . 1 . . . . . . . . 1 2 ignore_targets 6 | . . . . . . . . . . . 6 . . . . . . . . . . . find_garrison 5 | . . . . . . 1 . . . . . 1 . 1 . 1 . 1 . . . . scatter_targeting 1 | . . . . . . . 1 . . . . . . . . . . . . . . . link_complan 1 | . . . . . . 1 . . . . . . . . . . . . . . . . broadcast_data 1 | . . . . . . 1 . . . . . . . . . . . . . . . . disrupt_area 1 | . . . . . . . . . . . . . . . 1 . . . . . . . overload_power 1 | . . . . . . . . . 1 . . . . . . . . . . . . . amplify_resonance 6 | . . . . . . 2 . . . . . 1 . . 1 . . . . 2 . . reboot_system 6 | . . . . . . . 1 . . . . . . . 1 1 . . . 3 . . overwrite_iff 7 | . . . . . . 1 2 . 1 . . . . . 1 . . . . . . 2 streamctrl_low 1 | . . . . . . . . . . . . . . . . . . . . . 1 . streamctrl_high 3 | . . . . . . . . . . . . . . . 1 . . 2 . . . . formatsys_high 6 | . . . . . . . . . . . . 1 . 1 . 1 . 1 . 2 . . formatsys_deep 1 | . . . . . . . . . . . . . . . 1 . . . . . . . Relay Couplers Released 33 | . . . . . 11 . . . 4 . . . . . 8 . . . . 10 . . Machine Destruction 29 | . . . . . 11 . . . 4 . . . . . 4 . . . . 10 . . Programmers 4 | . . . . . . . . . . . . . . . 4 . . . . . . . Attached 17 | . . . . . . 1 1 . 1 . 1 1 . 2 2 1 . 3 . 3 . 1 Merged Code Value 11 | . . . . . . . . . . . . . . . . . . . . 11 . . Fabnet Peak Effective % . | . . . . . . . . . . . . . . . . . . . . . . . Robots Rewired 41 | . . . . . 9 . . . 4 . . . . . 3 . 15 . . 8 . 2 Allies Hacked 6 | . . . . . 1 . . . . . . . . . 1 . . 1 . . . 3 Hacks Repelled . | . . . . . . . . . . . . . . . . . . . . . . . Allies | -11 -10 -10 -9 -9 -9 -8 -8 -8 -8 -7 -7 -7 -7 -7 -7 -6 -6 -6 -5 -5 -4 -3 -------- Run | Yrd Mat Min Mat Sto Gar Mat Gar Mat Gar Fac Was Fac Gar Fac Gar Fac Gar Fac Fac Gar Fac Res Total Allies 76 | . 1 . . 10 9 1 2 . 5 . . 1 . 1 10 1 15 5 . 10 1 4 Largest Group 18 | . 1 1 . 10 11 6 1 . 4 4 4 1 . 1 4 3 16 18 . 9 9 6 Highest-Rated Group 650 | . 10 10 . 88 159 93 15 . 84 84 84 21 . 32 77 71 610 650 . 435 435 361 Highest-Rated Ally 142 | . 10 10 . 16 24 24 15 . 21 21 21 21 . 32 40 41 51 90 . 49 49 142 Total Orders 2 | . . . . . . . . . . . . . . . . . . 2 . . . . EXPLORE 2 | . . . . . . . . . . . . . . . . . . 2 . . . . Ally Attacks 615 | . . . . 56 114 42 3 . 2 . 68 9 . 2 43 11 . 149 . 28 35 53 Total Damage 15089 | . . . . 465 1465 635 87 . 19 . 1428 246 . 22 1208 293 . 5209 . 964 1145 1903 Kills 120 | . . . . 11 28 12 . . . . 1 3 . 1 6 2 . 35 . 6 6 9 Allies Corrupted 5 | . . . . . . . . . . . . . . . 2 . . 1 . . . 2 Allies Melted 1 | . . . . . . . . . . . . . . . . . . . . 1 . . Intel | -11 -10 -10 -9 -9 -9 -8 -8 -8 -8 -7 -7 -7 -7 -7 -7 -6 -6 -6 -5 -5 -4 -3 ------- Run | Yrd Mat Min Mat Sto Gar Mat Gar Mat Gar Fac Was Fac Gar Fac Gar Fac Gar Fac Fac Gar Fac Res Active Infowar (turns) 23 | . . . . . . . . . . . . . . . . 2 . 19 . . 2 . Traps 2 | . . . . . . . . . . . . . . . . . . . . . 2 . Cloaking 2 | . . . . . . . . . . . . . . . . 2 . . . . . . ECM 19 | . . . . . . . . . . . . . . . . . . 19 . . . . Robot Analysis Total 1 | . . . . 1 . . . . . . . . . . . . . . . . . . Derelict Logs Recovered 1 | . . 1 . . . . . . . . . . . . . . . . . . . . Drone Launches 5 | . . . . . . . . . . . . . . . . . . 5 . . . . Drone Recoveries 1 | . . . . . . . . . . . . . . . . . . 1 . . . . Exploration | -11 -10 -10 -9 -9 -9 -8 -8 -8 -8 -7 -7 -7 -7 -7 -7 -6 -6 -6 -5 -5 -4 -3 ------------- Run | Yrd Mat Min Mat Sto Gar Mat Gar Mat Gar Fac Was Fac Gar Fac Gar Fac Gar Fac Fac Gar Fac Res Turns Passed 17933 | 60 555 387 228 950 1562 692 686 102 905 33 206 969 444 498 1556 576 963 1140 1214 1449 460 2298 Spaces Moved 10532 | 42 367 306 144 628 795 437 319 69 481 26 146 651 313 351 815 363 660 819 731 768 279 1022 Core 2 | 2 . . . . . . . . . . . . . . . . . . . . . . Treads . | . . . . . . . . . . . . . . . . . . . . . . . Legs . | . . . . . . . . . . . . . . . . . . . . . . . Wheels 10530 | 40 367 306 144 628 795 437 319 69 481 26 146 651 313 351 815 363 660 819 731 768 279 1022 Hover . | . . . . . . . . . . . . . . . . . . . . . . . Flight . | . . . . . . . . . . . . . . . . . . . . . . . Fastest Speed 50 | 50 100 100 105 105 115 120 120 130 130 130 130 120 120 115 115 115 115 108 108 116 123 123 Average Speed 127 | 97 112 106 105 110 131 126 147 135 130 130 130 124 120 123 144 115 115 117 125 137 130 146 Slowest Speed 190 | 100 115 130 105 125 145 170 185 145 130 130 130 145 120 160 175 115 115 145 135 185 131 190 Overloaded Moves . | . . . . . . . . . . . . . . . . . . . . . . . Propulsion Burnouts . | . . . . . . . . . . . . . . . . . . . . . . . Robots Hopped . | . . . . . . . . . . . . . . . . . . . . . . . Potential Cave-ins . | . . . . . . . . . . . . . . . . . . . . . . . Cave-ins Triggered . | . . . . . . . . . . . . . . . . . . . . . . . Exploration Rate (%) 42 | 4 65 77 13 94 89 36 41 8 52 1 76 24 37 11 88 11 89 28 23 66 6 35 Regions Visited 22 Branch Regions 2 Pre-discovered Areas 5 | . 2 . 1 2 . . . . . . . . . . . . . . . . . . Known Exits Taken 8 | . . . 1 1 . 1 . 1 . . . 1 . 1 . 1 . . 1 . . . Unknown Exits Taken 5 | 1 1 1 . . . . . . . . . . . . . . . 1 . . 1 . Scrap Searched 2 | . . 2 . . . . . . . . . . . . . . . . . . . . Spaces Dug 64 | . . . . . 19 . . . . . . 3 . . . . . . 41 . . 1 Terrain Destroyed 445 | . 14 14 . 75 20 4 . . 16 . . 24 . . 4 30 . 26 52 10 . 156 Melee . | . . . . . . . . . . . . . . . . . . . . . . . Projectile 120 | . . . . . . . . . . . . . . . 4 8 . 14 9 6 . 79 AOE 325 | . 14 14 . 75 20 4 . . 16 . . 24 . . . 22 . 12 43 4 . 77 Terrain Rammed . | . . . . . . . . . . . . . . . . . . . . . . . Walls Destroyed . | . . . . . . . . . . . . . . . . . . . . . . . Machines Disabled . | . . . . . . . . . . . . . . . . . . . . . . . Actions | -11 -10 -10 -9 -9 -9 -8 -8 -8 -8 -7 -7 -7 -7 -7 -7 -6 -6 -6 -5 -5 -4 -3 --------- Run | Yrd Mat Min Mat Sto Gar Mat Gar Mat Gar Fac Was Fac Gar Fac Gar Fac Gar Fac Fac Gar Fac Res Total 13491 | 55 443 332 196 809 1169 511 446 78 641 26 157 767 358 388 1068 453 852 924 909 1057 375 1477 Wait 440 | . 25 . 26 59 34 . 7 . 26 . . 11 6 2 18 16 31 4 38 21 58 58 Move 10518 | 41 366 305 143 628 794 437 318 69 480 26 145 651 312 351 814 363 659 818 731 767 278 1022 Hop . | . . . . . . . . . . . . . . . . . . . . . . . Pick Up 175 | 7 10 2 6 11 12 8 7 1 9 . 1 10 7 2 15 9 5 4 10 7 8 24 Fast Attach 120 | 6 1 . . 10 2 3 5 1 3 . . 7 1 3 9 6 2 12 14 7 3 25 Attach 109 | . . 3 4 4 5 6 4 2 6 . 1 2 . 1 9 7 2 5 5 3 5 35 Detach 18 | . . . . 1 . . . 1 1 . . . . . . 2 . 3 3 . . 7 Swap 171 | . 4 2 2 11 9 5 4 1 7 . 2 13 4 6 10 4 2 12 14 19 3 37 Drop 220 | . 3 . . 22 10 9 8 3 5 . . 14 10 5 17 8 9 16 27 14 10 30 Fire 981 | 1 34 19 15 46 87 43 53 . 68 . 8 35 16 18 65 38 15 41 67 93 10 209 Melee 9 | . . . . . . . . . 2 . . . . . 7 . . . . . . . Ram 2 | . . 1 . 1 . . . . . . . . . . . . . . . . . . Kick . | . . . . . . . . . . . . . . . . . . . . . . . Crush . | . . . . . . . . . . . . . . . . . . . . . . . Escape Stasis 274 | . . . . 16 32 . 40 . 17 . . 24 . . 52 . . 8 . 56 . 29 Rewire 448 | . . . . . 184 . . . 17 . . . . . 49 . 127 . . 70 . 1 Trap 5 | . . . . . . . . . . . . . 2 . 3 . . . . . . . Miscellaneous 1 | . . . . . . . . . . . . . . . . . . 1 . . . . Route ------- -11/Scrapyard -10/Materials (discovered 2 exits: *Mat / [*Min]) -10/Mines (discovered 2 exits: *Mat / Sub) -9/Materials -9/Storage (discovered 2 exits: *Mat / Gar) -9/Garrison (discovered 3 exits: *Mat x3) -8/Materials -8/Garrison (discovered 2 exits: *Mat x2) -8/Materials -8/Garrison -7/Factory -7/Waste -7/Factory (discovered 2 exits: [*Low] / Gar) -7/Garrison (discovered 3 exits: *Fac x3) -7/Factory -7/Garrison (discovered 3 exits: *Fac x3) -6/Factory -6/Garrison (discovered 4 exits: *Fac x4) -6/Factory (discovered 4 exits: *Fac x2 / Low x2) -5/Factory (discovered 3 exits: [*Upp x2] / Gar) -5/Garrison (discovered 3 exits: *Fac x3) -4/Factory (discovered 2 exits: *Res / [Upp]) -3/Research History --------- Turn | Location | Event 25 | -11/Scrapyard | Discovered new exit (range 16) 61 | -11/Scrapyard | Entered Materials 344 | -10/Materials | Build established: Mutant 457 | -10/Materials | Discovered new exit (range 4) 574 | -10/Materials | Discovered new exit (range 7) 616 | -10/Materials | Entered Mines 616 | -10/Mines | Accompanied by 1 ally 644 | -10/Mines | Identified exit to Subcaves 998 | -10/Mines | Discovered new exit (range 3) 1003 | -10/Mines | Entered Materials 1003 | -9/Materials | Evolved 2 slots: Utility x2 1050 | -9/Materials | Discovered new exit (range 13) 1184 | -9/Materials | Repaired Ion Engine 1230 | -9/Materials | Identified exit to Storage 1231 | -9/Materials | Entered Storage 1507 | -9/Storage | Lost 3 parts (3n) 1591 | -9/Storage | Assisted by bots powering up and referring to "LRC-V3" 1698 | -9/Storage | Discovered new exit (range 16) 1892 | -9/Storage | Build established: Commander-Mutant 2139 | -9/Storage | Identified exit to Garrison 2181 | -9/Storage | Entered Garrison 2181 | -9/Garrison | Accompanied by 7 allies 2211 | -9/Garrison | Triggered checkpoint 2415 | -9/Garrison | Triggered checkpoint 2462 | -9/Garrison | Installed Relay Interface Framework 2837 | -9/Garrison | Triggered checkpoint 2839 | -9/Garrison | Discovered new exit (range 6) 2888 | -9/Garrison | Garrison Relay disabled 2928 | -9/Garrison | Lost 4 allies 2937 | -9/Garrison | Triggered checkpoint 2989 | -9/Garrison | Triggered checkpoint 2999 | -9/Garrison | Discovered new exit (range 14) 3014 | -9/Garrison | Identified exit to Materials 3077 | -9/Garrison | Core integrity fell below 50% 3082 | -9/Garrison | P-60 Hacker assimilated allied Shotgunner 2c 3233 | -9/Garrison | Triggered checkpoint 3326 | -9/Garrison | Discovered exit to Materials (range 14) 3413 | -9/Garrison | Triggered checkpoint 3421 | -9/Garrison | Garrison Relay disabled 3450 | -9/Garrison | Core integrity fell below 20% 3489 | -9/Garrison | Garrison Relay disabled 3589 | -9/Garrison | Triggered checkpoint 3643 | -9/Garrison | Triggered checkpoint 3649 | -9/Garrison | Triggered checkpoint 3743 | -9/Garrison | Entered Materials 3743 | -8/Materials | Accompanied by 6 allies 3743 | -8/Materials | Evolved 2 slots: Utility x1, Weapon x1 3838 | -8/Materials | Lost 3 allies 4062 | -8/Materials | Build established: Bothacker-Tank 4143 | -8/Materials | First assault squad dispatched 4435 | -8/Materials | Identified exit to Garrison 4435 | -8/Materials | Entered Garrison 4459 | -8/Garrison | Triggered checkpoint 4557 | -8/Garrison | Triggered checkpoint 4568 | -8/Garrison | Triggered checkpoint 4650 | -8/Garrison | Destroyed 9 combat bots 4697 | -8/Garrison | Discovered new exit (range 13) 4747 | -8/Garrison | Expanded RIF knowledge: Patrol Navigation 4883 | -8/Garrison | Triggered checkpoint 5079 | -8/Garrison | Discovered new exit (range 13) 5121 | -8/Garrison | Entered Materials 5197 | -8/Materials | Build established: Scavenger-Mutant 5223 | -8/Materials | Identified exit to Garrison 5223 | -8/Materials | Entered Garrison 5284 | -8/Garrison | Triggered checkpoint 5495 | -8/Garrison | Triggered checkpoint 5572 | -8/Garrison | Expanded RIF knowledge: Alert ID Control 5616 | -8/Garrison | Discovered new exit (range 12) 5658 | -8/Garrison | Build established: Bothacker-Mutant 5784 | -8/Garrison | Learned Factory security intel 5851 | -8/Garrison | Triggered checkpoint 5855 | -8/Garrison | Core integrity fell below 50% 5885 | -8/Garrison | Triggered checkpoint 6128 | -8/Garrison | Entered Factory 6128 | -7/Factory | Accompanied by 4 allies 6128 | -7/Factory | Evolved 2 slots: Propulsion x1, Utility x1 6161 | -7/Factory | Sucked down chute 6161 | -7/Factory | Entered Waste 6172 | -7/Waste | Spotted C-40 Crusher 6176 | -7/Waste | EMP discharged 6181 | -7/Waste | Spotted C-40 Crusher 6188 | -7/Waste | Spotted C-40 Crusher 6247 | -7/Waste | Spotted C-40 Crusher 6273 | -7/Waste | Spotted C-40 Crusher 6276 | -7/Waste | EMP discharged 6276 | -7/Waste | System corruption reached 10% 6281 | -7/Waste | 4 allies followed down the chute 6290 | -7/Waste | Spotted C-40 Crusher 6340 | -7/Waste | Discovered new exit (range 13) 6367 | -7/Waste | Entered Factory 6486 | -7/Factory | Build established: Bothacker-Gunner 7037 | -7/Factory | Discovered new exit (range 5) 7041 | -7/Factory | Build established: Tank 7336 | -7/Factory | Identified exit to Garrison 7336 | -7/Factory | Entered Garrison 7356 | -7/Garrison | Discovered new exit (range 82) 7356 | -7/Garrison | Discovered new exit (range 89) 7356 | -7/Garrison | Discovered new exit (range 71) 7358 | -7/Garrison | Triggered checkpoint 7478 | -7/Garrison | Triggered checkpoint 7773 | -7/Garrison | Expanded RIF knowledge: Hotswap 7780 | -7/Garrison | Entered Factory 8278 | -7/Factory | Identified exit to Garrison 8278 | -7/Factory | Entered Garrison 8278 | -7/Garrison | Accompanied by 1 ally 8334 | -7/Garrison | Triggered checkpoint 8390 | -7/Garrison | Garrison Relay disabled 8646 | -7/Garrison | Triggered checkpoint 8647 | -7/Garrison | Triggered checkpoint 8648 | -7/Garrison | Assimilated Heavy ARC 4a with formatsys_deep 8702 | -7/Garrison | Lost 5 allies 8794 | -7/Garrison | Discovered new exit (range 10) 8873 | -7/Garrison | Build established: Bothacker-Tank 8880 | -7/Garrison | Triggered checkpoint 8948 | -7/Garrison | Lost 3 parts (1n1u1w) 9006 | -7/Garrison | Discovered new exit (range 14) 9246 | -7/Garrison | Expanded RIF knowledge: Code Merge 9534 | -7/Garrison | Triggered checkpoint 9659 | -7/Garrison | Core integrity fell below 50% 9807 | -7/Garrison | Triggered checkpoint 9812 | -7/Garrison | Discovered new exit (range 13) 9834 | -7/Garrison | Entered Factory 9834 | -6/Factory | Accompanied by 3 allies 9834 | -6/Factory | Evolved 2 slots: Power x1, Propulsion x1 10093 | -6/Factory | Lost 3 allies 10408 | -6/Factory | Identified exit to Garrison 10410 | -6/Factory | Entered Garrison 10410 | -6/Garrison | Discovered recently destroyed garrison 10410 | -6/Garrison | Accompanied by 1 ally 10440 | -6/Garrison | Discovered new exit (range 6) 10699 | -6/Garrison | Discovered new exit (range 13) 11080 | -6/Garrison | Build established: Commander-Tank 11139 | -6/Garrison | Discovered new exit (range 10) 11275 | -6/Garrison | Expanded RIF knowledge: Coupler Efficiency 11308 | -6/Garrison | Discovered new exit (range 7) 11373 | -6/Garrison | Entered Factory 11373 | -6/Factory | Accompanied by 16 allies 11577 | -6/Factory | Fabricated R-10 Processor? 11833 | -6/Factory | Identified exit to Lower Caves 11988 | -6/Factory | Discovered new exit (range 10) 12379 | -6/Factory | Cargo convoy interrupted 12411 | -6/Factory | High security lockdown imminent 12411 | -6/Factory | Discovered new exit (range 15) 12415 | -6/Factory | Found Prototype Device 12415 | -6/Factory | Identified Exp. ECM Suite 12429 | -6/Factory | Found Prototype Device 12431 | -6/Factory | Found Prototype Protection 12447 | -6/Factory | Lost 18 allies 12464 | -6/Factory | Destroyed 7 combat bots 12491 | -6/Factory | High security lockdown engaged 12513 | -6/Factory | Entered another Factory area 12513 | -5/Factory | Evolved 2 slots: Power x1, Utility x1 12665 | -5/Factory | Build established: Scavenger-Tank 12679 | -5/Factory | Identified Exp. Thermal Defense Suite 12687 | -5/Factory | Identified Active Cooling Armor 12977 | -5/Factory | Build established: Tank 13031 | -5/Factory | Discovered new exit (range 14) 13124 | -5/Factory | Discovered new exit (range 13) 13419 | -5/Factory | Spotted B-75 Beast 13429 | -5/Factory | Destroyed B-75 Beast 13450 | -5/Factory | Destroyed 7 combat bots 13668 | -5/Factory | Garrison activated, responded to threat 13713 | -5/Factory | First assault squad dispatched 13721 | -5/Factory | Destroyed 12 combat bots 13727 | -5/Factory | Identified exit to Garrison 13727 | -5/Factory | Entered Garrison 13846 | -5/Garrison | Triggered checkpoint 13887 | -5/Garrison | Garrison Relay disabled 14069 | -5/Garrison | Triggered checkpoint 14137 | -5/Garrison | Triggered checkpoint 14225 | -5/Garrison | Discovered new exit (range 10) 14263 | -5/Garrison | Triggered checkpoint 14369 | -5/Garrison | Expanded RIF knowledge: Autoassimilate 14390 | -5/Garrison | Garrison Relay disabled 14672 | -5/Garrison | Build established: Commander-Tank 14945 | -5/Garrison | Discovered new exit (range 12) 14945 | -5/Garrison | Discovered new exit (range 64) 14945 | -5/Garrison | Discovered new exit (range 51) 14983 | -5/Garrison | Triggered checkpoint 15020 | -5/Garrison | Garrison Relay disabled 15176 | -5/Garrison | Entered Factory 15176 | -4/Factory | Accompanied by 9 allies 15176 | -4/Factory | Evolved 2 slots: Utility x2 15416 | -4/Factory | Fabricated Gamma Bomb Array (x1) 15436 | -4/Factory | Discovered new exit (range 79) 15517 | -4/Factory | Repaired Adv. Hardlight Generator 15597 | -4/Factory | Discovered new exit (range 6) 15636 | -4/Factory | Entered Research 15636 | -3/Research | Accompanied by 6 allies 15636 | -3/Research | Evolved 2 slots: Utility x1, Weapon x1 15854 | -3/Research | Spotted B-86 Titan 15878 | -3/Research | Rewired B-86 Titan 16225 | -3/Research | Lost 6 allies 16341 | -3/Research | Garrison activated, responded to threat 16480 | -3/Research | Found Prototype Processor 16480 | -3/Research | Identified Exp. Terrain Scan Processor 16516 | -3/Research | Build established: Tank 16709 | -3/Research | Garrison activated, responded to threat 16729 | -3/Research | System corruption reached 10% 16783 | -3/Research | Destroyed 11 combat bots 16816 | -3/Research | Garrison activated, responded to threat 16941 | -3/Research | Garrison activated, responded to threat 17179 | -3/Research | Found Prototype Protection 17179 | -3/Research | Identified Centrium Heavy Armor Plating 17276 | -3/Research | Lost 4 parts (1p1n1u1w) 17287 | -3/Research | System corruption reached 30% 17386 | -3/Research | First assault squad dispatched 17466 | -3/Research | High security lockdown imminent 17546 | -3/Research | High security lockdown engaged 17851 | -3/Research | Spotted Investigator 17852 | -3/Research | Scanned by Researcher 17868 | -3/Research | Destroyed Executioner 17876 | -3/Research | Destroyed Investigator 17903 | -3/Research | Spotted Striker 17904 | -3/Research | Spotted Executioner 17916 | -3/Research | Core integrity fell below 50% 17919 | -3/Research | Destroyed 19 combat bots 17927 | -3/Research | Core integrity fell below 20% 17934 | -3/Research | Destroyed by L-61 Swordsman with Power Sword Last Messages --------------- 17921_ M-36 Artificer repairs G-67 Veteran Unknown Energy Gun. 17921_ Stasis bubble strength at 104. 17922_ Stasis bubble strength at 98. 17922_ P-80 Master resets L-61 Swordsman, system corruption cleaned. 17923_ Stasis bubble strength at 92. 17924_ System corrupted: IFF burst signal emitted. 17924_ M-36 Artificer repairs P-80 Master Adv. Heat Sink. 17924_ Stasis bubble strength at 86. 17925_ Stasis bubble strength at 80. 17926_ Stasis bubble strength at 74. 17927_ P-80 Master resets L-61 Swordsman, system corruption cleaned. 17927_ Stasis bubble strength at 68. 17928_ Stasis bubble strength at 62. 17929_ Stasis bubble strength at 56. 17930_ Stasis bubble strength at 50. 17931_ Stasis bubble strength at 44. 17932_ Stasis bubble strength at 38. 17933_ M-36 Artificer repairs L-61 Swordsman. 17933_ Stasis bubble strength at 32. 17934_ Stasis bubble strength at 26. Map ----- +----------------------------------------------------+ | ????????# #?#%#####???? ???? #????????? | | ????????# = * ### # # ####??#+#????# #????????? | | ????????# ##] #* #??# #????# #????????? | | ????????#"###/#### ==[% *[=#### ###### #????????? | | ????????##??# ==[[!=*####% #????????? | | ????????????# ! [%=[%=%" % #####+#### | | ????????????# % [%%*[####### % # | | ????????#######/## % =!######### # = | | ????????# ##|/ #!% #% [=# = "" | | ????????# # #] =#=*!=# "" | | ????????# # = ## #[[=[# """"" | | ????????# ! ## """ #=[*%#= | | ????????#! # """ !#==%%/%= | | ????????# ! #= [ ## """ %/=%=[# | | ????????# " ! ## #%[=/# """ """ | | ????????# #########! #/ # """S""" | | ????????####"#########;;############ # | | ???????????### # # | | ?????????????# # #####+#### | | ?????????????# ; | | ?????????????# ; #########? | | ?????????????# = % ;##+####????????? | | ?????????????# !! != ; #?????????? | | ?????????????#########;;!%*!%[ == #?????????? | | ?????????????????????#*==]K==%%% = #?????????? | | ?????????????????????# *!@l=][=%==% #?????????? | | ?????????????????????# /=*l=%=%[* #?????????? | | ?????????????????????# !gppm%=![% #?????????? | | ?????????????????????## !=![[%% #?????????? | | ??????????????????????# #%==!gg #?????????? | | ??????????????????????##= !=% #?????????? | | ??????????????????????? [ # = #?????????? | | ??????????????????????? ; #?????????? | | ??????????????????????? ; #?????????? | | ?????????????????????? #######?????????? | | ?????????????????????? " #####;##???????????????? | | ??????????????????????"% ?????##????????????????? | | ?????????????????????? " %???????????????????????? | | ????????????????????? ???????????????????????? | | ????????????????????? ???????????????????????? | | ??????????????????????? ???????????????????????? | | ?????????????????????????????????????????????????? | | ?????????????????????????????????????????????????? | | ?????????????????????????????????????????????????? | | ?????????????????????????????????????????????????? | | ?????????????????????????????????????????????????? | | ?????????????????????????????????????????????????? | | ?????????????????????????????????????????????????? | | ?????????????????????????????????????????????????? | | ?????????????????????????????????????????????????? | +----------------------------------------------------+ Best States ------------- Heat Dissipation 106 Coolant Potential 100 Energy Generation 77 Energy Capacity 1400 Matter Stores 300 Matter Capacity 300 Sight Range 16 Terrain Scan Density 10 ECM Strength 3 Power Amplification 30 Corruption Block 18 Armor Coverage 1725 Resistance: KI 25 Resistance: TH 30 Resistance: EM 25 Core Shielding 20 Point Defense Rating 240 Weapon Cycling 25 Phase Shifting 15 Evasion (%) 55 Targeting Accuracy 8 Particle Charging 25 Salvage Targeting 3 Relay Coupler Types 2 Relay Coupler Value 55 Item Schematics ----------------- Adv. Treads | -9/Storage | Hacked Hvy. Hammer | -9/Storage | Hacked Enh. Nova Cannon | -3/Research | Hacked Robot Schematics ------------------ None Fabricated ------------ R-10 Processor | x2 | -6/Factory | Preloaded Gamma Bomb Array | x1 | -4/Factory | Preloaded Repaired ---------- Ion Engine | 5% | -9/Materials Adv. Hardlight Generator | 16% | -4/Factory Studied --------- None Alien Tech Used ----------------- None Achievements -------------- Beloved Deep Understanding Network Effect Plot Armor Taming Of The Crushers Watcher Gambling Challenges ------------ None Game ------ Seed ThrusterLinearPower Manual? 0 Play Time 03:32:48 Cumulative 191.3 hours Start 2025.11.01 @ 21:10:08 End 2025.11.02 @ 09:12:09 Sessions 3 Manual Loads 0 Difficulty Rogue Special Mode None Game No. 198 Rogue 194 Adventurer 3 Explorer 1 Win Type - Total 1 Types 1/0/0/0/0/0/0/0/0/0 Lore% 67 Gallery% 70 Achievement% 49 Wizard Run 0 Options --------- Layout 0 ASCII 0 Keyboard 0 Movement Mouse Keybinds 0 Fullscreen 2 Font 18/SmallcapsGlow Map View 76x50 Zoom Use 0% Tactical HUD 1 Map Filters NONE Filters NONE Steam 1 RUN: d2f6c979-df5c-4806-a71c-8637f7b30823